[Event "Titled Tuesday Blitz July 26 Early 2022"]
[White "Bryakin, Mikhail"]
[Black "Sadykov, Ramil"]
[WhiteFideId "4165314"]
[BlackFideId "24113590"]
[WhiteElo "2422"]
[BlackElo "2226"]
[Result "1/2-1/2"]
[Round "02"]
[TimeControl "180+1"]
[Date "2022.07.27"]
[WhiteClock "0:00:17"]
[BlackClock "0:00:03"]

1. e4 {[%clk 0:03:00]}  e5 {[%clk 0:02:59]} 2. d4 {[%clk 0:03:00]}  exd4 {[%clk 0:02:58]} 3. Qxd4 {[%clk 0:03:01]}  Nc6 {[%clk 0:02:58]} 4. Qd3 {[%clk 0:03:02]}  g6 {[%clk 0:02:52]} 5. Nc3 {[%clk 0:03:01]}  Bg7 {[%clk 0:02:52]} 6. Nf3 {[%clk 0:03:01]}  Nge7 {[%clk 0:02:50]} 7. Bg5 {[%clk 0:02:58]}  h6 {[%clk 0:02:49]} 8. Bh4 {[%clk 0:02:59]}  d6 {[%clk 0:02:46]} 9. O-O-O {[%clk 0:02:42]}  Be6 {[%clk 0:02:32]} 10. Nd5 {[%clk 0:02:37]}  g5 {[%clk 0:02:26]} 11. Bg3 {[%clk 0:02:34]}  Qd7 {[%clk 0:02:17]} 12. a3 {[%clk 0:02:28]}  O-O-O {[%clk 0:02:15]} 13. h4 {[%clk 0:02:28]}  g4 {[%clk 0:02:13]} 14. Nd2 {[%clk 0:02:27]}  f5 {[%clk 0:02:00]} 15. Nf4 {[%clk 0:02:08]}  Ne5 {[%clk 0:01:48]} 16. Qb5 {[%clk 0:02:04]}  Qxb5 {[%clk 0:01:43]} 17. Bxb5 {[%clk 0:02:05]}  Bf7 {[%clk 0:01:43]} 18. Rhe1 {[%clk 0:01:53]}  c6 {[%clk 0:01:36]} 19. Bf1 {[%clk 0:01:52]}  fxe4 {[%clk 0:01:28]} 20. Nxe4 {[%clk 0:01:50]}  Nf5 {[%clk 0:01:28]} 21. Bh2 {[%clk 0:01:42]}  d5 {[%clk 0:01:24]} 22. Nd2 {[%clk 0:01:39]}  Nxh4 {[%clk 0:01:20]} 23. Nd3 {[%clk 0:01:27]}  Nxd3+ {[%clk 0:01:05]} 24. Bxd3 {[%clk 0:01:26]}  Bg6 {[%clk 0:01:05]} 25. Re7 {[%clk 0:01:23]}  Rd7 {[%clk 0:01:03]} 26. Rde1 {[%clk 0:01:00]}  Bxd3 {[%clk 0:00:42]} 27. cxd3 {[%clk 0:00:54]}  Nf5 {[%clk 0:00:42]} 28. Re8+ {[%clk 0:00:51]}  Rxe8 {[%clk 0:00:41]} 29. Rxe8+ {[%clk 0:00:52]}  Rd8 {[%clk 0:00:42]} 30. Re6 {[%clk 0:00:45]}  Kd7 {[%clk 0:00:39]} 31. Rg6 {[%clk 0:00:45]}  h5 {[%clk 0:00:32]} 32. Bf4 {[%clk 0:00:44]}  Rg8 {[%clk 0:00:25]} 33. Kb1 {[%clk 0:00:42]}  Ke7 {[%clk 0:00:24]} 34. Rg5 {[%clk 0:00:39]}  Ke6 {[%clk 0:00:17]} 35. Rxh5 {[%clk 0:00:39]}  Bd4 {[%clk 0:00:17]} 36. Rh7 {[%clk 0:00:34]}  Rg7 {[%clk 0:00:15]} 37. Rxg7 {[%clk 0:00:31]}  Nxg7 {[%clk 0:00:16]} 38. f3 {[%clk 0:00:27]}  Kf5 {[%clk 0:00:12]} 39. Bb8 {[%clk 0:00:27]}  Ne6 {[%clk 0:00:10]} 40. Nf1 {[%clk 0:00:25]}  gxf3 {[%clk 0:00:09]} 41. gxf3 {[%clk 0:00:24]}  Ng5 {[%clk 0:00:09]} 42. Ng3+ {[%clk 0:00:23]}  Ke6 {[%clk 0:00:08]} 43. f4 {[%clk 0:00:24]}  Nf7 {[%clk 0:00:05]} 44. f5+ {[%clk 0:00:24]}  Kf6 {[%clk 0:00:05]} 45. Kc2 {[%clk 0:00:21]}  Bf2 {[%clk 0:00:05]} 46. Ne2 {[%clk 0:00:19]}  Kxf5 {[%clk 0:00:05]} 47. Nc3 {[%clk 0:00:13]}  Ke6 {[%clk 0:00:04]} 48. Ne2 {[%clk 0:00:13]}  Bb6 {[%clk 0:00:03]} 49. Bg3 {[%clk 0:00:13]}  Ne5 {[%clk 0:00:03]} 50. Bxe5 {[%clk 0:00:12]}  Kxe5 {[%clk 0:00:03]} 51. Nc3 {[%clk 0:00:13]}  Bd4 {[%clk 0:00:03]} 52. Na2 {[%clk 0:00:14]}  a5 {[%clk 0:00:03]} 53. Nc1 {[%clk 0:00:14]}  a4 {[%clk 0:00:03]} 54. b3 {[%clk 0:00:14]}  axb3+ {[%clk 0:00:03]} 55. Nxb3 {[%clk 0:00:15]}  Bb6 {[%clk 0:00:03]} 56. a4 {[%clk 0:00:15]}  Bc7 {[%clk 0:00:04]} 57. Nd2 {[%clk 0:00:15]}  Bd6 {[%clk 0:00:04]} 58. Nb3 {[%clk 0:00:16]}  Bc7 {[%clk 0:00:04]} 59. Nc5 {[%clk 0:00:16]}  b6 {[%clk 0:00:03]} 60. Nb3 {[%clk 0:00:16]}  Bd6 {[%clk 0:00:04]} 61. Nd2 {[%clk 0:00:15]}  Bc7 {[%clk 0:00:04]} 62. Nf3+ {[%clk 0:00:16]}  Kd6 {[%clk 0:00:04]} 63. Nd2 {[%clk 0:00:16]}  Kc5 {[%clk 0:00:04]} 64. Kb3 {[%clk 0:00:16]}  b5 {[%clk 0:00:04]} 65. axb5 {[%clk 0:00:16]}  Kxb5 {[%clk 0:00:05]} 66. Nf3 {[%clk 0:00:16]}  c5 {[%clk 0:00:04]} 67. Ng5 {[%clk 0:00:15]}  Be5 {[%clk 0:00:03]} 68. Ne6 {[%clk 0:00:15]}  c4+ {[%clk 0:00:03]} 69. dxc4+ {[%clk 0:00:15]}  dxc4+ {[%clk 0:00:04]} 70. Kc2 {[%clk 0:00:15]}  Kb4 {[%clk 0:00:04]} 71. Nd8 {[%clk 0:00:15]}  Kc5 {[%clk 0:00:04]} 72. Ne6+ {[%clk 0:00:15]}  Kd5 {[%clk 0:00:04]} 73. Ng5 {[%clk 0:00:16]}  Kc5 {[%clk 0:00:04]} 74. Nf3 {[%clk 0:00:16]}  Bf6 {[%clk 0:00:04]} 75. Nd2 {[%clk 0:00:17]}  Kb4 {[%clk 0:00:03]} 76. Nxc4 {[%clk 0:00:17]} 1/2-1/2


[Site "https://www.chess.com"]

[Event "Titled Tuesday Blitz July 26 Early 2022"]
[White "Flynn, Jacob"]
[Black "Srihari L R"]
[WhiteFideId "2509393"]
[BlackFideId "46617116"]
[WhiteElo "1900"]
[BlackElo "2170"]
[Result "0-1"]
[Round "02"]
[TimeControl "180+1"]
[Date "2022.07.27"]
[WhiteClock "0:00:11"]
[BlackClock "0:00:12"]

1. d4 {[%clk 0:02:55]}  Nf6 {[%clk 0:02:52]} 2. c4 {[%clk 0:02:56]}  e6 {[%clk 0:02:51]} 3. Nc3 {[%clk 0:02:56]}  d5 {[%clk 0:02:51]} 4. cxd5 {[%clk 0:02:55]}  exd5 {[%clk 0:02:48]} 5. Bg5 {[%clk 0:02:55]}  c6 {[%clk 0:02:41]} 6. Qc2 {[%clk 0:02:53]}  Be7 {[%clk 0:02:35]} 7. e3 {[%clk 0:02:52]}  Nbd7 {[%clk 0:02:33]} 8. Bd3 {[%clk 0:02:51]}  O-O {[%clk 0:02:27]} 9. Nf3 {[%clk 0:02:47]}  Re8 {[%clk 0:02:18]} 10. h3 {[%clk 0:02:38]}  Nf8 {[%clk 0:02:15]} 11. Bf4 {[%clk 0:02:37]}  Ng6 {[%clk 0:02:05]} 12. Bh2 {[%clk 0:02:33]}  Bd6 {[%clk 0:02:06]} 13. Bxd6 {[%clk 0:02:31]}  Qxd6 {[%clk 0:02:06]} 14. O-O-O {[%clk 0:02:23]}  b5 {[%clk 0:01:57]} 15. Kb1 {[%clk 0:02:17]}  b4 {[%clk 0:01:47]} 16. Na4 {[%clk 0:02:11]}  Ne4 {[%clk 0:01:46]} 17. Bxe4 {[%clk 0:02:06]}  dxe4 {[%clk 0:01:45]} 18. Nd2 {[%clk 0:02:04]}  Qd5 {[%clk 0:01:37]} 19. Nc5 {[%clk 0:01:55]}  f5 {[%clk 0:01:36]} 20. h4 {[%clk 0:01:45]}  Nf8 {[%clk 0:01:31]} 21. Nc4 {[%clk 0:01:40]}  Rb8 {[%clk 0:01:26]} 22. Ne5 {[%clk 0:01:38]}  Ne6 {[%clk 0:01:24]} 23. Nxe6 {[%clk 0:01:21]}  Bxe6 {[%clk 0:01:25]} 24. b3 {[%clk 0:01:18]}  Rec8 {[%clk 0:01:17]} 25. Nc4 {[%clk 0:00:58]}  c5 {[%clk 0:01:10]} 26. dxc5 {[%clk 0:00:58]}  Qxc5 {[%clk 0:01:09]} 27. Rd4 {[%clk 0:00:56]}  a5 {[%clk 0:01:06]} 28. Rhd1 {[%clk 0:00:55]}  a4 {[%clk 0:01:05]} 29. Qd2 {[%clk 0:00:30]}  axb3 {[%clk 0:00:54]} 30. axb3 {[%clk 0:00:31]}  Qa7 {[%clk 0:00:53]} 31. Rd6 {[%clk 0:00:25]}  Ra8 {[%clk 0:00:32]} 32. Qb2 {[%clk 0:00:23]}  Bxc4 {[%clk 0:00:30]} 33. bxc4 {[%clk 0:00:23]}  b3 {[%clk 0:00:25]} 34. Rd7 {[%clk 0:00:17]}  Qa2+ {[%clk 0:00:24]} 35. Qxa2 {[%clk 0:00:17]}  bxa2+ {[%clk 0:00:22]} 36. Ka1 {[%clk 0:00:17]}  Rxc4 {[%clk 0:00:22]} 37. Rd8+ {[%clk 0:00:17]}  Rxd8 {[%clk 0:00:23]} 38. Rxd8+ {[%clk 0:00:17]}  Kf7 {[%clk 0:00:23]} 39. Rd2 {[%clk 0:00:18]}  Ra4 {[%clk 0:00:20]} 40. Rxa2 {[%clk 0:00:15]}  Rxa2+ {[%clk 0:00:20]} 41. Kxa2 {[%clk 0:00:16]}  Kg6 {[%clk 0:00:21]} 42. Kb2 {[%clk 0:00:15]}  Kh5 {[%clk 0:00:21]} 43. Kc3 {[%clk 0:00:13]}  Kxh4 {[%clk 0:00:21]} 44. Kd4 {[%clk 0:00:14]}  Kg4 {[%clk 0:00:14]} 45. Ke5 {[%clk 0:00:14]}  h5 {[%clk 0:00:14]} 46. Ke6 {[%clk 0:00:12]}  f4 {[%clk 0:00:13]} 47. Ke5 {[%clk 0:00:10]}  f3 {[%clk 0:00:10]} 48. g3 {[%clk 0:00:09]}  g5 {[%clk 0:00:10]} 49. Kxe4 {[%clk 0:00:09]}  h4 {[%clk 0:00:11]} 50. gxh4 {[%clk 0:00:10]}  gxh4 {[%clk 0:00:11]} 51. Kd5 {[%clk 0:00:08]}  h3 {[%clk 0:00:11]} 52. e4 {[%clk 0:00:09]}  h2 {[%clk 0:00:11]} 53. e5 {[%clk 0:00:10]}  h1=Q {[%clk 0:00:11]} 54. e6 {[%clk 0:00:11]}  Qd1+ {[%clk 0:00:11]} 55. Kc6 {[%clk 0:00:11]}  Qc2+ {[%clk 0:00:11]} 56. Kd7 {[%clk 0:00:11]}  Qxf2 {[%clk 0:00:11]} 57. e7 {[%clk 0:00:11]}  Qd4+ {[%clk 0:00:12]} 0-1


[Site "https://www.chess.com"]

[Event "Titled Tuesday Blitz July 26 Early 2022"]
[White "Goltseva, Ekaterina"]
[Black "Hafiz, Arif Abdul"]
[WhiteFideId "24173770"]
[BlackFideId "7104227"]
[WhiteElo "2086"]
[BlackElo "2198"]
[Result "0-1"]
[Round "02"]
[TimeControl "180+1"]
[Date "2022.07.27"]
[WhiteClock "0:00:14"]
[BlackClock "0:00:27"]

1. d4 {[%clk 0:01:33]}  Nc6 {[%clk 0:03:00]} 2. Nf3 {[%clk 0:01:32]}  d5 {[%clk 0:02:58]} 3. g3 {[%clk 0:01:32]}  Bf5 {[%clk 0:02:56]} 4. Bg2 {[%clk 0:01:32]}  Qd7 {[%clk 0:02:56]} 5. a3 {[%clk 0:01:31]}  Bh3 {[%clk 0:02:53]} 6. Bxh3 {[%clk 0:01:29]}  Qxh3 {[%clk 0:02:54]} 7. b4 {[%clk 0:01:27]}  Nf6 {[%clk 0:02:45]} 8. b5 {[%clk 0:01:27]}  Na5 {[%clk 0:02:44]} 9. Nbd2 {[%clk 0:01:22]}  Ne4 {[%clk 0:02:39]} 10. Nxe4 {[%clk 0:01:16]}  dxe4 {[%clk 0:02:39]} 11. Ng5 {[%clk 0:01:16]}  Qg2 {[%clk 0:02:36]} 12. Rf1 {[%clk 0:01:16]}  h6 {[%clk 0:02:18]} 13. Nxf7 {[%clk 0:01:14]}  Kxf7 {[%clk 0:02:17]} 14. c4 {[%clk 0:01:12]}  e6 {[%clk 0:02:01]} 15. Qa4 {[%clk 0:01:07]}  b6 {[%clk 0:02:00]} 16. Be3 {[%clk 0:01:01]}  Be7 {[%clk 0:01:51]} 17. f3 {[%clk 0:00:56]}  Bf6 {[%clk 0:01:37]} 18. Qc2 {[%clk 0:00:43]}  exf3 {[%clk 0:01:34]} 19. Rxf3 {[%clk 0:00:43]}  Qh1+ {[%clk 0:01:22]} 20. Rf1 {[%clk 0:00:42]}  Qxh2 {[%clk 0:01:23]} 21. Bf4 {[%clk 0:00:43]}  Rhf8 {[%clk 0:01:16]} 22. O-O-O {[%clk 0:00:35]}  Kg8 {[%clk 0:01:14]} 23. Qe4 {[%clk 0:00:33]}  Qh3 {[%clk 0:01:12]} 24. d5 {[%clk 0:00:29]}  Rae8 {[%clk 0:01:02]} 25. d6 {[%clk 0:00:26]}  cxd6 {[%clk 0:00:55]} 26. Bxd6 {[%clk 0:00:26]}  Bb2+ {[%clk 0:00:41]} 27. Kxb2 {[%clk 0:00:20]}  Rxf1 {[%clk 0:00:42]} 28. Rd3 {[%clk 0:00:16]}  Qf5 {[%clk 0:00:38]} 29. Qd4 {[%clk 0:00:16]}  Qf6 {[%clk 0:00:33]} 30. Be5 {[%clk 0:00:15]}  Qxe5 {[%clk 0:00:33]} 31. Qxe5 {[%clk 0:00:13]}  Nxc4+ {[%clk 0:00:33]} 32. Kc3 {[%clk 0:00:14]}  Nxe5 {[%clk 0:00:33]} 33. Re3 {[%clk 0:00:15]}  Rc8+ {[%clk 0:00:31]} 34. Kd4 {[%clk 0:00:15]}  Ng4 {[%clk 0:00:26]} 35. Rxe6 {[%clk 0:00:15]}  Rd1+ {[%clk 0:00:26]} 36. Ke4 {[%clk 0:00:15]}  Rc4+ {[%clk 0:00:26]} 37. Kf3 {[%clk 0:00:15]}  Rf1+ {[%clk 0:00:27]} 38. Kg2 {[%clk 0:00:15]}  Rf2+ {[%clk 0:00:27]} 39. Kh3 {[%clk 0:00:14]}  Rh2# {[%clk 0:00:27]} 0-1


[Site "https://www.chess.com"]

[Event "Titled Tuesday Blitz July 26 Early 2022"]
[White "Kamsky, Gata"]
[Black "Vachylia, Andrii"]
[WhiteFideId "2000024"]
[BlackFideId "14137224"]
[WhiteElo "2645"]
[BlackElo "2318"]
[Result "1-0"]
[Round "02"]
[TimeControl "180+1"]
[Date "2022.07.26"]
[WhiteClock "0:02:19"]
[BlackClock "0:01:39"]

1. d4 {[%clk 0:03:00]}  Nf6 {[%clk 0:02:53]} 2. Bf4 {[%clk 0:03:00]}  e6 {[%clk 0:02:50]} 3. e3 {[%clk 0:02:59]}  c5 {[%clk 0:02:50]} 4. c3 {[%clk 0:02:59]}  cxd4 {[%clk 0:02:50]} 5. exd4 {[%clk 0:02:59]}  b6 {[%clk 0:02:51]} 6. Nd2 {[%clk 0:02:58]}  Bb7 {[%clk 0:02:51]} 7. Ngf3 {[%clk 0:02:58]}  d6 {[%clk 0:02:52]} 8. h3 {[%clk 0:02:58]}  Be7 {[%clk 0:02:52]} 9. a4 {[%clk 0:02:58]}  a6 {[%clk 0:02:50]} 10. Bh2 {[%clk 0:02:57]}  O-O {[%clk 0:02:50]} 11. Be2 {[%clk 0:02:51]}  Nbd7 {[%clk 0:02:50]} 12. O-O {[%clk 0:02:51]}  Qc7 {[%clk 0:02:50]} 13. Re1 {[%clk 0:02:51]}  Rfe8 {[%clk 0:02:50]} 14. c4 {[%clk 0:02:46]}  Bc6 {[%clk 0:02:49]} 15. b4 {[%clk 0:02:45]}  h6 {[%clk 0:02:37]} 16. Bf1 {[%clk 0:02:44]}  Bf8 {[%clk 0:02:36]} 17. a5 {[%clk 0:02:29]}  bxa5 {[%clk 0:02:32]} 18. Rxa5 {[%clk 0:02:27]}  Qb7 {[%clk 0:02:32]} 19. Qa1 {[%clk 0:02:22]}  Qxb4 {[%clk 0:01:49]} 20. Rb1 {[%clk 0:02:19]}  Qxb1 {[%clk 0:01:39]} 1-0


[Site "https://www.chess.com"]

[Event "Titled Tuesday Blitz July 26 Early 2022"]
[White "Kupervaser, Erez"]
[Black "Csonka, Balazs"]
[WhiteFideId "2814587"]
[BlackFideId "742910"]
[WhiteElo "1832"]
[BlackElo "2404"]
[Result "1-0"]
[Round "02"]
[TimeControl "180+1"]
[Date "2022.07.27"]
[WhiteClock "0:00:31"]
[BlackClock "0:00:01"]

1. e4 {[%clk 0:03:00]}  e5 {[%clk 0:02:59]} 2. Nf3 {[%clk 0:02:58]}  Nc6 {[%clk 0:02:59]} 3. d4 {[%clk 0:02:58]}  exd4 {[%clk 0:02:59]} 4. Nxd4 {[%clk 0:02:59]}  Bb4+ {[%clk 0:02:59]} 5. c3 {[%clk 0:02:58]}  Bc5 {[%clk 0:02:59]} 6. Be3 {[%clk 0:02:58]}  Bb6 {[%clk 0:03:00]} 7. Nf5 {[%clk 0:02:57]}  Bxe3 {[%clk 0:02:57]} 8. Nxe3 {[%clk 0:02:57]}  Nf6 {[%clk 0:02:58]} 9. f3 {[%clk 0:02:48]}  O-O {[%clk 0:02:46]} 10. c4 {[%clk 0:02:47]}  Nxe4 {[%clk 0:01:55]} 11. fxe4 {[%clk 0:02:47]}  Qh4+ {[%clk 0:01:56]} 12. Kd2 {[%clk 0:02:43]}  Qxe4 {[%clk 0:01:56]} 13. Nd5 {[%clk 0:02:42]}  d6 {[%clk 0:01:37]} 14. Nbc3 {[%clk 0:02:39]}  Qe5 {[%clk 0:01:35]} 15. Bd3 {[%clk 0:02:35]}  Qg5+ {[%clk 0:01:31]} 16. Kc2 {[%clk 0:02:33]}  Qxg2+ {[%clk 0:01:26]} 17. Kb1 {[%clk 0:02:31]}  Bg4 {[%clk 0:01:17]} 18. Rg1 {[%clk 0:02:24]}  Bxd1 {[%clk 0:01:17]} 19. Rxg2 {[%clk 0:02:23]}  Bf3 {[%clk 0:01:17]} 20. Rg3 {[%clk 0:02:19]}  Bxd5 {[%clk 0:01:14]} 21. Nxd5 {[%clk 0:02:20]}  f5 {[%clk 0:00:27]} 22. Nxc7 {[%clk 0:02:16]}  Rac8 {[%clk 0:00:25]} 23. Nb5 {[%clk 0:02:14]}  Rcd8 {[%clk 0:00:20]} 24. Kc2 {[%clk 0:02:10]}  f4 {[%clk 0:00:18]} 25. Rh3 {[%clk 0:02:07]}  g6 {[%clk 0:00:17]} 26. Rf1 {[%clk 0:01:59]}  Ne5 {[%clk 0:00:17]} 27. Be4 {[%clk 0:01:56]}  Kg7 {[%clk 0:00:15]} 28. Nd4 {[%clk 0:01:49]}  Rde8 {[%clk 0:00:13]} 29. Bd5 {[%clk 0:01:47]}  Rf6 {[%clk 0:00:12]} 30. Rb3 {[%clk 0:01:40]}  b6 {[%clk 0:00:11]} 31. Ra3 {[%clk 0:01:38]}  Re7 {[%clk 0:00:11]} 32. h4 {[%clk 0:01:29]}  Ng4 {[%clk 0:00:09]} 33. Ne6+ {[%clk 0:01:26]}  Rfxe6 {[%clk 0:00:06]} 34. Bxe6 {[%clk 0:01:24]}  Rxe6 {[%clk 0:00:05]} 35. Rxa7+ {[%clk 0:01:21]}  Kh6 {[%clk 0:00:06]} 36. Rxf4 {[%clk 0:01:18]}  Ne3+ {[%clk 0:00:05]} 37. Kc3 {[%clk 0:01:15]}  Nf5 {[%clk 0:00:05]} 38. Ra6 {[%clk 0:01:12]}  Kh5 {[%clk 0:00:05]} 39. Rxb6 {[%clk 0:01:09]}  Nxh4 {[%clk 0:00:04]} 40. a4 {[%clk 0:01:06]}  Kg5 {[%clk 0:00:03]} 41. Rf7 {[%clk 0:01:02]}  Nf5 {[%clk 0:00:03]} 42. a5 {[%clk 0:00:59]}  Re3+ {[%clk 0:00:02]} 43. Kb4 {[%clk 0:00:57]}  Nd4 {[%clk 0:00:03]} 44. Rxd6 {[%clk 0:00:49]}  Rb3+ {[%clk 0:00:02]} 45. Kc5 {[%clk 0:00:49]}  Nf5 {[%clk 0:00:02]} 46. Rb6 {[%clk 0:00:45]}  Re3 {[%clk 0:00:02]} 47. a6 {[%clk 0:00:44]}  Re5+ {[%clk 0:00:02]} 48. Kb4 {[%clk 0:00:41]}  Re8 {[%clk 0:00:01]} 49. a7 {[%clk 0:00:41]}  Nd6 {[%clk 0:00:02]} 50. Rb8 {[%clk 0:00:37]}  Re6 {[%clk 0:00:01]} 51. Rd7 {[%clk 0:00:31]} 1-0


[Site "https://www.chess.com"]

[Event "Titled Tuesday Blitz July 26 Early 2022"]
[White "Ladron De Guevara Pinto, Paolo"]
[Black "Rustemov, Alexander"]
[WhiteFideId "2290847"]
[BlackFideId "4119002"]
[WhiteElo "2423"]
[BlackElo "2816"]
[Result "0-1"]
[Round "02"]
[TimeControl "180+1"]
[Date "2022.07.26"]
[WhiteClock "0:00:14"]
[BlackClock "0:00:23"]

1. e4 {[%clk 0:03:00]}  e6 {[%clk 0:02:59]} 2. d4 {[%clk 0:03:00]}  d5 {[%clk 0:03:00]} 3. Nd2 {[%clk 0:03:00]}  dxe4 {[%clk 0:02:57]} 4. Nxe4 {[%clk 0:03:00]}  Bd7 {[%clk 0:02:58]} 5. Nf3 {[%clk 0:02:54]}  Bc6 {[%clk 0:02:58]} 6. Bd3 {[%clk 0:02:54]}  Nd7 {[%clk 0:02:59]} 7. Qe2 {[%clk 0:02:52]}  Ngf6 {[%clk 0:02:59]} 8. Nxf6+ {[%clk 0:02:49]}  Nxf6 {[%clk 0:02:59]} 9. Bg5 {[%clk 0:02:50]}  Bxf3 {[%clk 0:02:57]} 10. Qxf3 {[%clk 0:02:49]}  Qd5 {[%clk 0:02:58]} 11. Qxd5 {[%clk 0:02:46]}  Nxd5 {[%clk 0:02:59]} 12. c3 {[%clk 0:02:41]}  Be7 {[%clk 0:02:58]} 13. Bd2 {[%clk 0:02:41]}  c6 {[%clk 0:02:55]} 14. O-O {[%clk 0:02:38]}  h5 {[%clk 0:02:49]} 15. a3 {[%clk 0:02:36]}  Rd8 {[%clk 0:02:43]} 16. Rfd1 {[%clk 0:02:29]}  Bf6 {[%clk 0:02:36]} 17. Be2 {[%clk 0:02:25]}  g6 {[%clk 0:02:30]} 18. Bf3 {[%clk 0:02:25]}  Kd7 {[%clk 0:02:12]} 19. c4 {[%clk 0:01:56]}  Nb6 {[%clk 0:02:09]} 20. b3 {[%clk 0:01:46]}  Kc8 {[%clk 0:01:51]} 21. Be3 {[%clk 0:01:39]}  Rd7 {[%clk 0:01:51]} 22. Ra2 {[%clk 0:01:38]}  Rhd8 {[%clk 0:01:46]} 23. Rad2 {[%clk 0:01:38]}  Be7 {[%clk 0:01:38]} 24. a4 {[%clk 0:01:34]}  Bb4 {[%clk 0:01:34]} 25. Rd3 {[%clk 0:01:30]}  a5 {[%clk 0:01:19]} 26. g3 {[%clk 0:01:25]}  Na8 {[%clk 0:01:10]} 27. Bg5 {[%clk 0:01:16]}  Be7 {[%clk 0:01:08]} 28. Bxe7 {[%clk 0:01:06]}  Rxe7 {[%clk 0:01:07]} 29. d5 {[%clk 0:01:06]}  Red7 {[%clk 0:00:43]} 30. dxc6 {[%clk 0:01:04]}  bxc6 {[%clk 0:00:43]} 31. Rxd7 {[%clk 0:00:50]}  Rxd7 {[%clk 0:00:44]} 32. Re1 {[%clk 0:00:50]}  Kc7 {[%clk 0:00:40]} 33. Re3 {[%clk 0:00:41]}  Kb6 {[%clk 0:00:38]} 34. Kg2 {[%clk 0:00:36]}  Nc7 {[%clk 0:00:38]} 35. h4 {[%clk 0:00:31]}  Na6 {[%clk 0:00:38]} 36. g4 {[%clk 0:00:23]}  hxg4 {[%clk 0:00:37]} 37. Bxg4 {[%clk 0:00:24]}  Nc5 {[%clk 0:00:37]} 38. Be2 {[%clk 0:00:19]}  Rd4 {[%clk 0:00:34]} 39. Kh3 {[%clk 0:00:18]}  Re4 {[%clk 0:00:34]} 40. Rxe4 {[%clk 0:00:18]}  Nxe4 {[%clk 0:00:34]} 41. f3 {[%clk 0:00:15]}  Nc5 {[%clk 0:00:30]} 42. Bd1 {[%clk 0:00:15]}  f5 {[%clk 0:00:28]} 43. Kg3 {[%clk 0:00:15]}  e5 {[%clk 0:00:28]} 44. f4 {[%clk 0:00:15]}  e4 {[%clk 0:00:26]} 45. Kf2 {[%clk 0:00:15]}  Ne6 {[%clk 0:00:27]} 46. Ke3 {[%clk 0:00:15]}  c5 {[%clk 0:00:27]} 47. h5 {[%clk 0:00:15]}  gxh5 {[%clk 0:00:23]} 48. Bxh5 {[%clk 0:00:16]}  Nd4 {[%clk 0:00:23]} 49. Bg6 {[%clk 0:00:15]}  Kc6 {[%clk 0:00:23]} 50. Bh7 {[%clk 0:00:14]}  Kd6 {[%clk 0:00:24]} 51. Kd2 {[%clk 0:00:14]}  Ke6 {[%clk 0:00:24]} 52. Ke3 {[%clk 0:00:14]}  Nxb3 {[%clk 0:00:23]} 0-1


[Site "https://www.chess.com"]